[Event "Titled Tuesday Blitz April 19 Early 2022"]
[White "Marczuk, Dominik"]
[Black "Mikhalsky, Vladimir"]
[WhiteFideId "1111264"]
[BlackFideId "14144352"]
[WhiteElo "1912"]
[BlackElo "2301"]
[Result "1-0"]
[Round "11"]
[TimeControl "180+1"]
[Date "2022.04.19"]
[WhiteClock "0:00:05"]
[BlackClock "0:00:03"]

1. e4 {[%clk 0:02:44]}  g6 {[%clk 0:02:59]} 2. d4 {[%clk 0:02:44]}  Bg7 {[%clk 0:02:59]} 3. Nc3 {[%clk 0:02:44]}  d6 {[%clk 0:02:59]} 4. f4 {[%clk 0:02:44]}  Nf6 {[%clk 0:02:57]} 5. Nf3 {[%clk 0:02:44]}  O-O {[%clk 0:02:56]} 6. Be3 {[%clk 0:02:45]}  Ng4 {[%clk 0:02:53]} 7. Bg1 {[%clk 0:02:45]}  a6 {[%clk 0:02:45]} 8. h3 {[%clk 0:02:33]}  Nf6 {[%clk 0:02:45]} 9. g4 {[%clk 0:02:23]}  b5 {[%clk 0:02:44]} 10. e5 {[%clk 0:02:18]}  Nfd7 {[%clk 0:02:42]} 11. Bd3 {[%clk 0:02:09]}  Bb7 {[%clk 0:02:39]} 12. Be4 {[%clk 0:02:06]}  Qc8 {[%clk 0:02:39]} 13. Qe2 {[%clk 0:02:04]}  c5 {[%clk 0:02:33]} 14. O-O-O {[%clk 0:01:55]}  cxd4 {[%clk 0:02:33]} 15. Bxd4 {[%clk 0:01:50]}  dxe5 {[%clk 0:02:32]} 16. Nxe5 {[%clk 0:01:46]}  Nxe5 {[%clk 0:02:29]} 17. Bxe5 {[%clk 0:01:44]}  b4 {[%clk 0:02:14]} 18. Bxb7 {[%clk 0:01:35]}  Qxb7 {[%clk 0:02:12]} 19. Nd5 {[%clk 0:01:20]}  Nc6 {[%clk 0:02:11]} 20. Bxg7 {[%clk 0:01:15]}  Kxg7 {[%clk 0:02:10]} 21. f5 {[%clk 0:01:07]}  f6 {[%clk 0:01:58]} 22. Nf4 {[%clk 0:00:47]}  Ne5 {[%clk 0:01:38]} 23. Ne6+ {[%clk 0:00:46]}  Kh8 {[%clk 0:01:24]} 24. Nxf8 {[%clk 0:00:46]}  Rxf8 {[%clk 0:01:24]} 25. fxg6 {[%clk 0:00:47]}  hxg6 {[%clk 0:01:23]} 26. g5 {[%clk 0:00:45]}  Qc6 {[%clk 0:01:08]} 27. gxf6 {[%clk 0:00:43]}  exf6 {[%clk 0:01:08]} 28. Kb1 {[%clk 0:00:35]}  Rc8 {[%clk 0:01:05]} 29. Rhe1 {[%clk 0:00:24]}  a5 {[%clk 0:01:04]} 30. h4 {[%clk 0:00:24]}  a4 {[%clk 0:01:03]} 31. Rc1 {[%clk 0:00:21]}  a3 {[%clk 0:01:00]} 32. c4 {[%clk 0:00:12]}  b3 {[%clk 0:00:50]} 33. axb3 {[%clk 0:00:11]}  Ra8 {[%clk 0:00:44]} 34. Rc3 {[%clk 0:00:09]}  Qa6 {[%clk 0:00:39]} 35. bxa3 {[%clk 0:00:09]}  Qxa3 {[%clk 0:00:37]} 36. Qb2 {[%clk 0:00:09]}  Qb4 {[%clk 0:00:30]} 37. Rce3 {[%clk 0:00:09]}  Ng4 {[%clk 0:00:20]} 38. Re8+ {[%clk 0:00:07]}  Rxe8 {[%clk 0:00:19]} 39. Rxe8+ {[%clk 0:00:08]}  Kg7 {[%clk 0:00:19]} 40. Re2 {[%clk 0:00:05]}  Kh6 {[%clk 0:00:16]} 41. Rc2 {[%clk 0:00:05]}  Ne5 {[%clk 0:00:16]} 42. Qc3 {[%clk 0:00:06]}  Qa3 {[%clk 0:00:15]} 43. b4 {[%clk 0:00:06]}  Qa4 {[%clk 0:00:15]} 44. Qe3+ {[%clk 0:00:06]}  Kg7 {[%clk 0:00:13]} 45. Kb2 {[%clk 0:00:06]}  Qxb4+ {[%clk 0:00:14]} 46. Qb3 {[%clk 0:00:07]}  Qa5 {[%clk 0:00:14]} 47. c5 {[%clk 0:00:07]}  Nc6 {[%clk 0:00:13]} 48. Qb6 {[%clk 0:00:07]}  Qa4 {[%clk 0:00:09]} 49. Qb7+ {[%clk 0:00:07]}  Kh6 {[%clk 0:00:09]} 50. Qb3 {[%clk 0:00:08]}  Qd4+ {[%clk 0:00:09]} 51. Qc3 {[%clk 0:00:08]}  Qa4 {[%clk 0:00:09]} 52. Qe3+ {[%clk 0:00:08]}  Kg7 {[%clk 0:00:08]} 53. h5 {[%clk 0:00:08]}  Qb4+ {[%clk 0:00:08]} 54. Qb3 {[%clk 0:00:09]}  Qd4+ {[%clk 0:00:06]} 55. Qc3 {[%clk 0:00:09]}  Qa4 {[%clk 0:00:06]} 56. hxg6 {[%clk 0:00:10]}  Kxg6 {[%clk 0:00:06]} 57. Rg2+ {[%clk 0:00:10]}  Kf7 {[%clk 0:00:07]} 58. Qb3+ {[%clk 0:00:10]}  Qxb3+ {[%clk 0:00:06]} 59. Kxb3 {[%clk 0:00:11]}  Ke6 {[%clk 0:00:06]} 60. Kc4 {[%clk 0:00:12]}  Ne5+ {[%clk 0:00:05]} 61. Kb5 {[%clk 0:00:12]}  f5 {[%clk 0:00:05]} 62. c6 {[%clk 0:00:12]}  f4 {[%clk 0:00:05]} 63. c7 {[%clk 0:00:06]}  Kd7 {[%clk 0:00:05]} 64. Kb6 {[%clk 0:00:06]}  Nc4+ {[%clk 0:00:05]} 65. Kc5 {[%clk 0:00:05]}  Ne3 {[%clk 0:00:04]} 66. Rg7+ {[%clk 0:00:05]}  Kc8 {[%clk 0:00:03]} 67. Kc6 {[%clk 0:00:05]} 1-0


[Site "https://www.chess.com"]

[Event "Titled Tuesday Blitz April 19 Early 2022"]
[White "Martic, Ivan"]
[Black "Karolczuk, Iwo"]
[WhiteFideId "929301"]
[BlackFideId "21816972"]
[WhiteElo "2317"]
[BlackElo "2277"]
[Result "1-0"]
[Round "11"]
[TimeControl "180+1"]
[Date "2022.04.19"]
[WhiteClock "0:00:17"]
[BlackClock "0:00:10"]

1. c4 {[%clk 0:02:53]}  e5 {[%clk 0:02:58]} 2. Nc3 {[%clk 0:02:52]}  Nf6 {[%clk 0:02:52]} 3. g3 {[%clk 0:02:51]}  Bb4 {[%clk 0:02:51]} 4. Bg2 {[%clk 0:02:51]}  O-O {[%clk 0:02:49]} 5. Nf3 {[%clk 0:02:49]}  Bxc3 {[%clk 0:02:46]} 6. bxc3 {[%clk 0:02:49]}  Nc6 {[%clk 0:02:47]} 7. O-O {[%clk 0:02:47]}  Re8 {[%clk 0:02:47]} 8. d3 {[%clk 0:02:41]}  h6 {[%clk 0:02:44]} 9. e4 {[%clk 0:02:40]}  d6 {[%clk 0:02:40]} 10. Nh4 {[%clk 0:02:39]}  Nd7 {[%clk 0:02:11]} 11. Nf5 {[%clk 0:02:36]}  Nc5 {[%clk 0:02:08]} 12. Be3 {[%clk 0:02:25]}  Bxf5 {[%clk 0:02:06]} 13. exf5 {[%clk 0:02:26]}  Qf6 {[%clk 0:01:59]} 14. g4 {[%clk 0:02:18]}  e4 {[%clk 0:01:54]} 15. d4 {[%clk 0:02:11]}  Nd3 {[%clk 0:01:53]} 16. h3 {[%clk 0:01:59]}  Na5 {[%clk 0:01:43]} 17. Bxe4 {[%clk 0:01:51]}  Nb2 {[%clk 0:01:36]} 18. Qf3 {[%clk 0:01:44]}  Nbxc4 {[%clk 0:01:36]} 19. Bf4 {[%clk 0:01:38]}  c6 {[%clk 0:01:23]} 20. Rae1 {[%clk 0:01:27]}  d5 {[%clk 0:01:15]} 21. Bd3 {[%clk 0:01:22]}  g5 {[%clk 0:01:05]} 22. Bc1 {[%clk 0:01:07]}  Qd6 {[%clk 0:01:03]} 23. f6 {[%clk 0:00:58]}  Qd7 {[%clk 0:00:57]} 24. h4 {[%clk 0:00:50]}  Nd6 {[%clk 0:00:54]} 25. hxg5 {[%clk 0:00:47]}  Ne4 {[%clk 0:00:49]} 26. gxh6 {[%clk 0:00:35]}  Kh8 {[%clk 0:00:42]} 27. Bxe4 {[%clk 0:00:30]}  dxe4 {[%clk 0:00:41]} 28. Rxe4 {[%clk 0:00:31]}  Rxe4 {[%clk 0:00:40]} 29. Qxe4 {[%clk 0:00:32]}  Rg8 {[%clk 0:00:40]} 30. f3 {[%clk 0:00:31]}  Nc4 {[%clk 0:00:38]} 31. h7 {[%clk 0:00:30]}  Re8 {[%clk 0:00:27]} 32. Qd3 {[%clk 0:00:29]}  Qd6 {[%clk 0:00:26]} 33. Kg2 {[%clk 0:00:28]}  Qxf6 {[%clk 0:00:26]} 34. Qxc4 {[%clk 0:00:26]}  Kxh7 {[%clk 0:00:24]} 35. Rh1+ {[%clk 0:00:24]}  Kg7 {[%clk 0:00:21]} 36. Qd3 {[%clk 0:00:22]}  Qd6 {[%clk 0:00:11]} 37. Qh7+ {[%clk 0:00:18]}  Kf8 {[%clk 0:00:11]} 38. Qh8+ {[%clk 0:00:16]}  Ke7 {[%clk 0:00:10]} 39. Re1+ {[%clk 0:00:17]} 1-0


[Site "https://www.chess.com"]

[Event "Titled Tuesday Blitz April 19 Early 2022"]
[White "Matlakov, Maxim"]
[Black "Nazari, Arad"]
[WhiteFideId "4168003"]
[BlackFideId "12577324"]
[WhiteElo "2669"]
[BlackElo "2129"]
[Result "1-0"]
[Round "11"]
[TimeControl "180+1"]
[Date "2022.04.19"]
[WhiteClock "0:00:01"]
[BlackClock "0:00:02"]

1. d4 {[%clk 0:03:00]}  Nf6 {[%clk 0:02:59]} 2. g4 {[%clk 0:02:57]}  Nxg4 {[%clk 0:02:57]} 3. e4 {[%clk 0:02:56]}  d6 {[%clk 0:02:47]} 4. Nc3 {[%clk 0:02:54]}  e5 {[%clk 0:02:41]} 5. Nh3 {[%clk 0:02:49]}  exd4 {[%clk 0:02:28]} 6. Qxd4 {[%clk 0:02:47]}  Nc6 {[%clk 0:02:24]} 7. Bb5 {[%clk 0:02:45]}  Ne5 {[%clk 0:02:21]} 8. Qe3 {[%clk 0:02:42]}  Qh4 {[%clk 0:01:53]} 9. Nf4 {[%clk 0:02:40]}  Bd7 {[%clk 0:01:44]} 10. Bd2 {[%clk 0:02:36]}  Bg4 {[%clk 0:01:27]} 11. Be2 {[%clk 0:02:33]}  Bxe2 {[%clk 0:01:27]} 12. Ncxe2 {[%clk 0:02:18]}  g6 {[%clk 0:01:18]} 13. O-O-O {[%clk 0:02:17]}  O-O-O {[%clk 0:01:16]} 14. Nd5 {[%clk 0:02:15]}  Nc4 {[%clk 0:01:06]} 15. Qb3 {[%clk 0:01:52]}  Nxd2 {[%clk 0:01:04]} 16. Rxd2 {[%clk 0:01:53]}  Qxe4 {[%clk 0:00:59]} 17. Rhd1 {[%clk 0:01:50]}  Bh6 {[%clk 0:00:57]} 18. Qh3+ {[%clk 0:01:49]}  Kb8 {[%clk 0:00:52]} 19. Qxh6 {[%clk 0:01:50]}  Ne5 {[%clk 0:00:51]} 20. Nec3 {[%clk 0:01:48]}  Qc4 {[%clk 0:00:49]} 21. Rd4 {[%clk 0:01:45]}  Qa6 {[%clk 0:00:48]} 22. Ra4 {[%clk 0:01:42]}  Qc6 {[%clk 0:00:47]} 23. Qe3 {[%clk 0:01:42]}  a6 {[%clk 0:00:46]} 24. b4 {[%clk 0:01:36]}  Nc4 {[%clk 0:00:44]} 25. Qd4 {[%clk 0:01:29]}  b5 {[%clk 0:00:27]} 26. Nxb5 {[%clk 0:01:22]}  Nb6 {[%clk 0:00:20]} 27. Nxb6 {[%clk 0:00:28]}  Qxb5 {[%clk 0:00:20]} 28. Ra5 {[%clk 0:00:15]}  Qxb6 {[%clk 0:00:20]} 29. Qc4 {[%clk 0:00:16]}  Kb7 {[%clk 0:00:19]} 30. Rd3 {[%clk 0:00:16]}  Rhe8 {[%clk 0:00:17]} 31. Rda3 {[%clk 0:00:16]}  Re1+ {[%clk 0:00:17]} 32. Kb2 {[%clk 0:00:16]}  Ra8 {[%clk 0:00:17]} 33. b5 {[%clk 0:00:16]}  Re5 {[%clk 0:00:16]} 34. Ka1 {[%clk 0:00:08]}  Rxb5 {[%clk 0:00:13]} 35. Rxb5 {[%clk 0:00:08]}  axb5 {[%clk 0:00:14]} 36. Qe4+ {[%clk 0:00:08]}  d5 {[%clk 0:00:01]} 37. Qxd5+ {[%clk 0:00:08]}  c6 {[%clk 0:00:01]} 38. Qxf7+ {[%clk 0:00:07]}  Kb8 {[%clk 0:00:02]} 39. Qg8+ {[%clk 0:00:05]}  Kc7 {[%clk 0:00:03]} 40. Qxh7+ {[%clk 0:00:05]}  Kd6 {[%clk 0:00:02]} 41. Qxg6+ {[%clk 0:00:05]}  Kc7 {[%clk 0:00:03]} 42. Qf7+ {[%clk 0:00:05]}  Kb8 {[%clk 0:00:02]} 43. Qe8+ {[%clk 0:00:05]}  Kc7 {[%clk 0:00:03]} 44. Qe7+ {[%clk 0:00:05]}  Kb8 {[%clk 0:00:03]} 45. Qe8+ {[%clk 0:00:02]}  Kc7 {[%clk 0:00:04]} 46. Qf7+ {[%clk 0:00:02]}  Kb8 {[%clk 0:00:04]} 47. Qf8+ {[%clk 0:00:01]}  Kc7 {[%clk 0:00:05]} 48. Qf4+ {[%clk 0:00:01]}  Kb7 {[%clk 0:00:05]} 49. Rd3 {[%clk 0:00:01]}  Rb8 {[%clk 0:00:02]} 50. Qf7+ {[%clk 0:00:01]} 1-0


[Site "https://www.chess.com"]

[Event "Titled Tuesday Blitz April 19 Early 2022"]
[White "Mayaud, Raphael"]
[Black "Piliczewski, Bogusz"]
[WhiteFideId "627151"]
[BlackFideId "1104144"]
[WhiteElo "2191"]
[BlackElo "1896"]
[Result "1-0"]
[Round "11"]
[TimeControl "180+1"]
[Date "2022.04.19"]
[WhiteClock "0:02:14"]
[BlackClock "0:00:53"]

1. d4 {[%clk 0:02:57]}  d5 {[%clk 0:03:00]} 2. c4 {[%clk 0:02:57]}  c6 {[%clk 0:03:00]} 3. Nf3 {[%clk 0:02:57]}  Nf6 {[%clk 0:03:00]} 4. Nc3 {[%clk 0:02:58]}  e6 {[%clk 0:03:01]} 5. Bg5 {[%clk 0:02:58]}  Nbd7 {[%clk 0:03:01]} 6. e3 {[%clk 0:02:57]}  Qa5 {[%clk 0:03:02]} 7. Bxf6 {[%clk 0:02:57]}  Nxf6 {[%clk 0:03:01]} 8. Bd3 {[%clk 0:02:58]}  Bb4 {[%clk 0:02:59]} 9. Qc2 {[%clk 0:02:58]}  dxc4 {[%clk 0:02:50]} 10. Bxc4 {[%clk 0:02:56]}  Nd5 {[%clk 0:02:50]} 11. Rc1 {[%clk 0:02:56]}  b5 {[%clk 0:02:33]} 12. Bb3 {[%clk 0:02:50]}  Qb6 {[%clk 0:02:22]} 13. O-O {[%clk 0:02:49]}  O-O {[%clk 0:02:19]} 14. Ne4 {[%clk 0:02:43]}  Bb7 {[%clk 0:02:11]} 15. Nfg5 {[%clk 0:02:38]}  h6 {[%clk 0:02:00]} 16. Bxd5 {[%clk 0:02:22]}  hxg5 {[%clk 0:01:32]} 17. Nxg5 {[%clk 0:02:22]}  g6 {[%clk 0:01:18]} 18. Bxe6 {[%clk 0:02:17]}  Qc7 {[%clk 0:00:53]} 19. Qxg6+ {[%clk 0:02:14]} 1-0


[Site "https://www.chess.com"]

[Event "Titled Tuesday Blitz April 19 Early 2022"]
[White "Mikhailovsky, Vladimir"]
[Black "Tologon tegin, Semetei"]
[WhiteFideId "34105414"]
[BlackFideId "13800574"]
[WhiteElo "2349"]
[BlackElo "2258"]
[Result "1-0"]
[Round "11"]
[TimeControl "180+1"]
[Date "2022.04.19"]
[WhiteClock "0:00:19"]
[BlackClock "0:00:30"]

1. e4 {[%clk 0:02:47]}  e5 {[%clk 0:02:58]} 2. Nf3 {[%clk 0:02:46]}  Nc6 {[%clk 0:02:57]} 3. Bc4 {[%clk 0:02:46]}  Bc5 {[%clk 0:02:56]} 4. d3 {[%clk 0:02:45]}  Nf6 {[%clk 0:02:55]} 5. Bg5 {[%clk 0:02:46]}  h6 {[%clk 0:02:55]} 6. Bh4 {[%clk 0:02:46]}  d6 {[%clk 0:02:55]} 7. a4 {[%clk 0:02:39]}  a6 {[%clk 0:02:54]} 8. c3 {[%clk 0:02:38]}  Ba7 {[%clk 0:02:54]} 9. O-O {[%clk 0:02:35]}  Qe7 {[%clk 0:02:53]} 10. b4 {[%clk 0:02:31]}  g5 {[%clk 0:02:53]} 11. Bg3 {[%clk 0:02:31]}  Nd7 {[%clk 0:02:50]} 12. d4 {[%clk 0:02:21]}  Nf8 {[%clk 0:02:42]} 13. b5 {[%clk 0:02:08]}  Na5 {[%clk 0:02:40]} 14. Ba2 {[%clk 0:02:04]}  Ng6 {[%clk 0:02:39]} 15. Nbd2 {[%clk 0:01:59]}  g4 {[%clk 0:02:39]} 16. Ne1 {[%clk 0:01:55]}  h5 {[%clk 0:02:38]} 17. f4 {[%clk 0:01:44]}  exd4 {[%clk 0:02:28]} 18. Bf2 {[%clk 0:01:25]}  dxc3 {[%clk 0:02:20]} 19. Nc4 {[%clk 0:01:24]}  Nxc4 {[%clk 0:02:18]} 20. Bxc4 {[%clk 0:01:25]}  Bxf2+ {[%clk 0:02:12]} 21. Rxf2 {[%clk 0:01:26]}  axb5 {[%clk 0:02:12]} 22. Bxb5+ {[%clk 0:01:20]}  c6 {[%clk 0:02:12]} 23. Bc4 {[%clk 0:01:17]}  h4 {[%clk 0:02:08]} 24. Qd4 {[%clk 0:01:04]}  g3 {[%clk 0:02:06]} 25. Rf1 {[%clk 0:01:05]}  gxh2+ {[%clk 0:01:57]} 26. Kxh2 {[%clk 0:01:05]}  Rg8 {[%clk 0:01:40]} 27. Nd3 {[%clk 0:00:52]}  Nf8 {[%clk 0:01:20]} 28. f5 {[%clk 0:00:45]}  Nd7 {[%clk 0:01:19]} 29. f6 {[%clk 0:00:39]}  Qf8 {[%clk 0:01:19]} 30. e5 {[%clk 0:00:34]}  Kd8 {[%clk 0:00:51]} 31. exd6 {[%clk 0:00:25]}  Ra5 {[%clk 0:00:46]} 32. Rae1 {[%clk 0:00:22]}  Rag5 {[%clk 0:00:45]} 33. Rf2 {[%clk 0:00:21]}  h3 {[%clk 0:00:34]} 34. gxh3 {[%clk 0:00:19]}  Qh6 {[%clk 0:00:30]} 35. Qe3 {[%clk 0:00:19]} 1-0


[Site "https://www.chess.com"]

[Event "Titled Tuesday Blitz April 19 Early 2022"]
[White "Mirzoev, Azer"]
[Black "Costachi, Mihnea"]
[WhiteFideId "13400304"]
[BlackFideId "1217518"]
[WhiteElo "2525"]
[BlackElo "2476"]
[Result "1/2-1/2"]
[Round "11"]
[TimeControl "180+1"]
[Date "2022.04.19"]
[WhiteClock "0:00:10"]
[BlackClock "0:00:50"]

1. d4 {[%clk 0:02:59]}  Nf6 {[%clk 0:02:57]} 2. Nf3 {[%clk 0:02:58]}  g6 {[%clk 0:02:57]} 3. Bf4 {[%clk 0:02:58]}  Bg7 {[%clk 0:02:58]} 4. e3 {[%clk 0:02:58]}  O-O {[%clk 0:02:58]} 5. h3 {[%clk 0:02:58]}  d6 {[%clk 0:02:59]} 6. Bh2 {[%clk 0:02:58]}  c5 {[%clk 0:02:59]} 7. c3 {[%clk 0:02:58]}  Be6 {[%clk 0:02:59]} 8. Nbd2 {[%clk 0:02:58]}  Qb6 {[%clk 0:03:00]} 9. Qc1 {[%clk 0:02:55]}  Nc6 {[%clk 0:03:00]} 10. Be2 {[%clk 0:02:55]}  Rac8 {[%clk 0:03:00]} 11. O-O {[%clk 0:02:53]}  Nd7 {[%clk 0:02:53]} 12. Qb1 {[%clk 0:02:45]}  cxd4 {[%clk 0:02:51]} 13. exd4 {[%clk 0:02:41]}  Nf6 {[%clk 0:02:42]} 14. Re1 {[%clk 0:02:37]}  Bf5 {[%clk 0:02:42]} 15. Nc4 {[%clk 0:02:26]}  Qc7 {[%clk 0:02:30]} 16. Qd1 {[%clk 0:02:24]}  b5 {[%clk 0:02:29]} 17. Ne3 {[%clk 0:02:23]}  Bd7 {[%clk 0:02:28]} 18. Bxb5 {[%clk 0:02:19]}  Rb8 {[%clk 0:02:28]} 19. Bxc6 {[%clk 0:02:06]}  Bxc6 {[%clk 0:02:22]} 20. d5 {[%clk 0:01:58]}  Bd7 {[%clk 0:02:22]} 21. Qc2 {[%clk 0:01:37]}  Qa5 {[%clk 0:02:15]} 22. c4 {[%clk 0:01:26]}  Rfc8 {[%clk 0:02:12]} 23. b3 {[%clk 0:01:06]}  Nxd5 {[%clk 0:01:58]} 24. Nxd5 {[%clk 0:01:06]}  Qxd5 {[%clk 0:01:58]} 25. Rad1 {[%clk 0:01:06]}  Qh5 {[%clk 0:01:58]} 26. Rxe7 {[%clk 0:00:58]}  Bxh3 {[%clk 0:01:58]} 27. Bxd6 {[%clk 0:00:50]}  Re8 {[%clk 0:01:47]} 28. Bxb8 {[%clk 0:00:43]}  Rxe7 {[%clk 0:01:47]} 29. Rd8+ {[%clk 0:00:42]}  Bf8 {[%clk 0:01:47]} 30. Bd6 {[%clk 0:00:37]}  Qg4 {[%clk 0:01:47]} 31. Rxf8+ {[%clk 0:00:22]}  Kxf8 {[%clk 0:01:47]} 32. Bxe7+ {[%clk 0:00:21]}  Kxe7 {[%clk 0:01:47]} 33. Qe2+ {[%clk 0:00:21]}  Kf8 {[%clk 0:01:45]} 34. Qf1 {[%clk 0:00:18]}  Qf4 {[%clk 0:01:36]} 35. Qd3 {[%clk 0:00:12]}  Bf5 {[%clk 0:01:21]} 36. Qd8+ {[%clk 0:00:12]}  Kg7 {[%clk 0:01:21]} 37. Qd4+ {[%clk 0:00:11]}  Qxd4 {[%clk 0:01:22]} 38. Nxd4 {[%clk 0:00:11]}  Bb1 {[%clk 0:01:23]} 39. a4 {[%clk 0:00:11]}  Kf6 {[%clk 0:01:23]} 40. a5 {[%clk 0:00:10]}  a6 {[%clk 0:01:18]} 41. f4 {[%clk 0:00:10]}  g5 {[%clk 0:01:11]} 42. fxg5+ {[%clk 0:00:10]}  Kxg5 {[%clk 0:01:12]} 43. Kf2 {[%clk 0:00:10]}  Kf4 {[%clk 0:01:13]} 44. Nc6 {[%clk 0:00:10]}  Ba2 {[%clk 0:01:09]} 45. Nb4 {[%clk 0:00:09]}  Bxb3 {[%clk 0:01:09]} 46. Nxa6 {[%clk 0:00:09]}  Bxc4 {[%clk 0:01:09]} 47. Nc7 {[%clk 0:00:10]}  h5 {[%clk 0:00:52]} 48. a6 {[%clk 0:00:10]}  Bxa6 {[%clk 0:00:52]} 49. Nxa6 {[%clk 0:00:10]}  h4 {[%clk 0:00:53]} 50. Nc5 {[%clk 0:00:10]}  Kg4 {[%clk 0:00:54]} 51. Nd3 {[%clk 0:00:09]}  h3 {[%clk 0:00:53]} 52. Ne5+ {[%clk 0:00:10]}  Kf5 {[%clk 0:00:50]} 53. Nf3 {[%clk 0:00:09]}  hxg2 {[%clk 0:00:49]} 54. Kxg2 {[%clk 0:00:09]}  Kg4 {[%clk 0:00:50]} 55. Ne5+ {[%clk 0:00:09]}  Kf4 {[%clk 0:00:50]} 56. Nxf7 {[%clk 0:00:10]} 1/2-1/2


[Site "https://www.chess.com"]

[Event "Titled Tuesday Blitz April 19 Early 2022"]
[White "Miszler, Levente"]
[Black "Murthy, Pappu"]
[WhiteFideId "763276"]
[BlackFideId "2013401"]
[WhiteElo "1966"]
[BlackElo "1964"]
[Result "0-1"]
[Round "11"]
[TimeControl "180+1"]
[Date "2022.04.19"]
[WhiteClock "0:00:02"]
[BlackClock "0:00:11"]

1. Nf3 {[%clk 0:02:56]}  c5 {[%clk 0:02:59]} 2. c4 {[%clk 0:02:55]}  Nc6 {[%clk 0:02:59]} 3. Nc3 {[%clk 0:02:56]}  g6 {[%clk 0:02:57]} 4. d4 {[%clk 0:02:52]}  cxd4 {[%clk 0:02:56]} 5. Nxd4 {[%clk 0:02:53]}  Bg7 {[%clk 0:02:55]} 6. Nxc6 {[%clk 0:02:52]}  bxc6 {[%clk 0:02:55]} 7. g3 {[%clk 0:02:53]}  Nf6 {[%clk 0:02:55]} 8. Bg2 {[%clk 0:02:53]}  O-O {[%clk 0:02:56]} 9. O-O {[%clk 0:02:53]}  Rb8 {[%clk 0:02:57]} 10. e4 {[%clk 0:02:43]}  Ba6 {[%clk 0:02:55]} 11. Qa4 {[%clk 0:02:36]}  Qc8 {[%clk 0:02:43]} 12. Rd1 {[%clk 0:02:30]}  d6 {[%clk 0:02:43]} 13. e5 {[%clk 0:02:25]}  dxe5 {[%clk 0:02:27]} 14. Bxc6 {[%clk 0:02:24]}  Bb7 {[%clk 0:02:21]} 15. Bxb7 {[%clk 0:02:20]}  Qxb7 {[%clk 0:02:21]} 16. b3 {[%clk 0:02:13]}  e4 {[%clk 0:02:13]} 17. Bb2 {[%clk 0:02:13]}  e3 {[%clk 0:02:12]} 18. fxe3 {[%clk 0:02:12]}  Qf3 {[%clk 0:02:12]} 19. Qxa7 {[%clk 0:02:01]}  e6 {[%clk 0:01:52]} 20. Rf1 {[%clk 0:01:58]}  Qh5 {[%clk 0:01:47]} 21. Rf2 {[%clk 0:01:18]}  Ng4 {[%clk 0:01:40]} 22. Rd2 {[%clk 0:01:13]}  Ra8 {[%clk 0:01:29]} 23. Qc7 {[%clk 0:00:59]}  Nxe3 {[%clk 0:01:24]} 24. Re1 {[%clk 0:00:51]}  Qf3 {[%clk 0:01:12]} 25. Qf4 {[%clk 0:00:43]}  Qxf4 {[%clk 0:01:05]} 26. gxf4 {[%clk 0:00:44]}  Nf5 {[%clk 0:01:03]} 27. Na4 {[%clk 0:00:37]}  Bxb2 {[%clk 0:00:58]} 28. Rxb2 {[%clk 0:00:38]}  Rfd8 {[%clk 0:00:57]} 29. Kf2 {[%clk 0:00:38]}  Rab8 {[%clk 0:00:49]} 30. Nc3 {[%clk 0:00:34]}  Rd3 {[%clk 0:00:47]} 31. Ne4 {[%clk 0:00:31]}  Nd4 {[%clk 0:00:44]} 32. Rd2 {[%clk 0:00:24]}  Rxd2+ {[%clk 0:00:29]} 33. Nxd2 {[%clk 0:00:25]}  Ra8 {[%clk 0:00:28]} 34. a4 {[%clk 0:00:16]}  Kg7 {[%clk 0:00:27]} 35. Re4 {[%clk 0:00:13]}  Nc6 {[%clk 0:00:22]} 36. c5 {[%clk 0:00:12]}  Rb8 {[%clk 0:00:22]} 37. Rc4 {[%clk 0:00:12]}  Na5 {[%clk 0:00:20]} 38. Rc3 {[%clk 0:00:12]}  Nc6 {[%clk 0:00:18]} 39. Ke3 {[%clk 0:00:09]}  f5 {[%clk 0:00:16]} 40. Nc4 {[%clk 0:00:08]}  Kf6 {[%clk 0:00:15]} 41. Nd6 {[%clk 0:00:08]}  h6 {[%clk 0:00:13]} 42. Nb5 {[%clk 0:00:08]}  g5 {[%clk 0:00:12]} 43. fxg5+ {[%clk 0:00:07]}  hxg5 {[%clk 0:00:13]} 44. Nd4 {[%clk 0:00:07]}  f4+ {[%clk 0:00:12]} 45. Kd3 {[%clk 0:00:07]}  Rd8 {[%clk 0:00:11]} 46. Rc4 {[%clk 0:00:04]}  e5 {[%clk 0:00:12]} 47. Ke4 {[%clk 0:00:02]}  exd4 {[%clk 0:00:11]} 0-1


[Site "https://www.chess.com"]

[Event "Titled Tuesday Blitz April 19 Early 2022"]
[White "Nareks, Matic"]
[Black "Melikhov, Evgeny V."]
[WhiteFideId "14629526"]
[BlackFideId "4122046"]
[WhiteElo "2147"]
[BlackElo "1931"]
[Result "1-0"]
[Round "11"]
[TimeControl "180+1"]
[Date "2022.04.19"]
[WhiteClock "0:01:00"]
[BlackClock "0:00:15"]

1. e4 {[%clk 0:03:00]}  e5 {[%clk 0:02:59]} 2. Nf3 {[%clk 0:03:00]}  Nc6 {[%clk 0:02:59]} 3. Bc4 {[%clk 0:02:59]}  Nf6 {[%clk 0:02:58]} 4. d4 {[%clk 0:02:59]}  exd4 {[%clk 0:02:57]} 5. e5 {[%clk 0:03:00]}  d5 {[%clk 0:02:53]} 6. Bb5 {[%clk 0:03:00]}  Ne4 {[%clk 0:02:53]} 7. Nxd4 {[%clk 0:03:01]}  Bd7 {[%clk 0:02:52]} 8. Bxc6 {[%clk 0:02:59]}  bxc6 {[%clk 0:02:52]} 9. O-O {[%clk 0:02:55]}  Bc5 {[%clk 0:02:50]} 10. f3 {[%clk 0:02:53]}  Ng5 {[%clk 0:02:49]} 11. f4 {[%clk 0:02:53]}  Ne4 {[%clk 0:02:49]} 12. Be3 {[%clk 0:02:53]}  Bb6 {[%clk 0:02:48]} 13. Nd2 {[%clk 0:02:50]}  c5 {[%clk 0:02:38]} 14. N4f3 {[%clk 0:02:46]}  Nxd2 {[%clk 0:02:33]} 15. Qxd2 {[%clk 0:02:47]}  Bc6 {[%clk 0:02:33]} 16. Rad1 {[%clk 0:02:45]}  d4 {[%clk 0:02:26]} 17. Qe2 {[%clk 0:02:41]}  Qd5 {[%clk 0:02:22]} 18. Bf2 {[%clk 0:02:31]}  O-O-O {[%clk 0:02:20]} 19. b3 {[%clk 0:02:25]}  Qe4 {[%clk 0:02:10]} 20. Qd2 {[%clk 0:02:19]}  g5 {[%clk 0:01:45]} 21. fxg5 {[%clk 0:02:16]}  h6 {[%clk 0:01:29]} 22. gxh6 {[%clk 0:02:16]}  Rdg8 {[%clk 0:01:20]} 23. Bg3 {[%clk 0:02:16]}  c4 {[%clk 0:01:07]} 24. Kh1 {[%clk 0:02:08]}  Rxg3 {[%clk 0:00:56]} 25. hxg3 {[%clk 0:02:07]}  Qg6 {[%clk 0:00:56]} 26. Nh4 {[%clk 0:01:56]}  Qxg3 {[%clk 0:00:54]} 27. Qf4 {[%clk 0:01:42]}  Qh3+ {[%clk 0:00:36]} 28. Kg1 {[%clk 0:01:36]}  d3+ {[%clk 0:00:36]} 29. Rf2 {[%clk 0:01:34]}  dxc2 {[%clk 0:00:28]} 30. Rc1 {[%clk 0:01:25]}  Qd3 {[%clk 0:00:25]} 31. Qf5+ {[%clk 0:01:12]}  Kb8 {[%clk 0:00:21]} 32. Rxc2 {[%clk 0:01:05]}  Rg8 {[%clk 0:00:19]} 33. Qxd3 {[%clk 0:01:02]}  cxd3 {[%clk 0:00:19]} 34. Rxc6 {[%clk 0:01:02]}  d2 {[%clk 0:00:18]} 35. Rxb6+ {[%clk 0:00:59]}  axb6 {[%clk 0:00:16]} 36. Rxd2 {[%clk 0:01:00]}  Rh8 {[%clk 0:00:15]} 37. Nf5 {[%clk 0:01:00]} 1-0


[Site "https://www.chess.com"]